[Event "Late-Titled-Tuesday-Blitz-February-13-2024"]
[Site "Chess.com"]
[Date "2024.02.13"]
[Round "9"]
[White "Walter_White_Poland"]
[Black "ChEsper99"]
[Result "1-0"]
[WhiteElo "2431"]
[BlackElo "2204"]
[TimeControl "180+1"]
[EndTime "15:45:27 PST"]
[Termination "Walter_White_Poland won by resignation"]

1. d4 {[%clk 0:02:58.3]} 1... Nf6 {[%clk 0:02:53.7]} 2. Bf4 {[%clk 0:02:51.4]}
2... d5 {[%clk 0:02:42.5]} 3. e3 {[%clk 0:02:51]} 3... e6 {[%clk 0:02:35.5]} 4.
Nf3 {[%clk 0:02:47.1]} 4... Bd6 {[%clk 0:02:32]} 5. Bg3 {[%clk 0:02:46.1]} 5...
O-O {[%clk 0:02:31.7]} 6. Nbd2 {[%clk 0:02:45.8]} 6... c5 {[%clk 0:02:24.7]} 7.
c3 {[%clk 0:02:45.7]} 7... Qc7 {[%clk 0:02:23.9]} 8. Ne5 {[%clk 0:02:41.7]} 8...
Nbd7 {[%clk 0:02:22.4]} 9. Ndf3 {[%clk 0:02:35.1]} 9... Ne4 {[%clk 0:02:20.1]}
10. Bd3 {[%clk 0:02:25.1]} 10... b6 {[%clk 0:02:02.9]} 11. Nxd7 {[%clk
0:02:09.1]} 11... Bxd7 {[%clk 0:02:01.1]} 12. Bxd6 {[%clk 0:01:53.4]} 12... Nxd6
{[%clk 0:01:53.2]} 13. Ne5 {[%clk 0:01:08.5]} 13... Bb5 {[%clk 0:01:32]} 14.
Bxb5 {[%clk 0:01:03.2]} 14... Nxb5 {[%clk 0:01:32.9]} 15. O-O {[%clk 0:01:01.9]}
15... f6 {[%clk 0:01:26.6]} 16. Nf3 {[%clk 0:01:00.7]} 16... Nd6 {[%clk
0:01:23.4]} 17. Re1 {[%clk 0:00:59.4]} 17... Ne4 {[%clk 0:01:22.8]} 18. Nd2
{[%clk 0:00:59.4]} 18... Nxd2 {[%clk 0:01:22.7]} 19. Qxd2 {[%clk 0:00:59.1]}
19... e5 {[%clk 0:01:11.5]} 20. Rad1 {[%clk 0:00:44]} 20... exd4 {[%clk
0:00:44.6]} 21. exd4 {[%clk 0:00:43.1]} 21... c4 {[%clk 0:00:43.8]} 22. g3
{[%clk 0:00:40.9]} 22... Rae8 {[%clk 0:00:43.1]} 23. Kg2 {[%clk 0:00:40.5]}
23... Kf7 {[%clk 0:00:40.9]} 24. Rxe8 {[%clk 0:00:38.7]} 24... Rxe8 {[%clk
0:00:41]} 25. Re1 {[%clk 0:00:39.2]} 25... Re7 {[%clk 0:00:40.6]} 26. Kf3 {[%clk
0:00:30]} 26... b5 {[%clk 0:00:28.5]} 27. Re3 {[%clk 0:00:28.6]} 27... Re4
{[%clk 0:00:13.9]} 28. Rxe4 {[%clk 0:00:22.1]} 28... dxe4+ {[%clk 0:00:14.8]}
29. Kxe4 {[%clk 0:00:22]} 29... Qe7+ {[%clk 0:00:15.1]} 30. Kf3 {[%clk
0:00:21.9]} 30... Qb7+ {[%clk 0:00:10.8]} 31. d5 {[%clk 0:00:21.6]} 31... Ke7
{[%clk 0:00:11.2]} 32. Qd4 {[%clk 0:00:19.1]} 32... Kd6 {[%clk 0:00:10.5]} 33.
Ke4 {[%clk 0:00:19.1]} 33... Qe7+ {[%clk 0:00:10.3]} 34. Kf4 {[%clk 0:00:17.5]}
34... Qb7 {[%clk 0:00:04.9]} 35. h4 {[%clk 0:00:15.2]} 35... Qxd5 {[%clk
0:00:04.1]} 36. Qxd5+ {[%clk 0:00:15.6]} 36... Kxd5 {[%clk 0:00:04.2]} 37. Kf5
{[%clk 0:00:16.1]} 37... Kd6 {[%clk 0:00:02]} 38. h5 {[%clk 0:00:15.6]} 38...
Ke7 {[%clk 0:00:02.2]} 39. g4 {[%clk 0:00:14.5]} 39... Kf7 {[%clk 0:00:02]} 40.
f4 {[%clk 0:00:14.3]} 40... g6+ {[%clk 0:00:02.2]} 41. hxg6+ {[%clk 0:00:14.7]}
41... hxg6+ {[%clk 0:00:03.1]} 42. Ke4 {[%clk 0:00:15]} 42... Ke6 {[%clk
0:00:03.5]} 43. Kd4 {[%clk 0:00:15.1]} 43... Kd6 {[%clk 0:00:03.7]} 44. a4
{[%clk 0:00:12.9]} 44... a6 {[%clk 0:00:03.6]} 45. g5 {[%clk 0:00:09.1]} 45...
fxg5 {[%clk 0:00:03.5]} 46. fxg5 {[%clk 0:00:10]} 46... Ke6 {[%clk 0:00:03.6]}
47. axb5 {[%clk 0:00:03.7]} 47... axb5 {[%clk 0:00:03.9]} 48. Kc5 {[%clk
0:00:03.5]} 48... Kf5 {[%clk 0:00:03.7]} 49. Kxb5 {[%clk 0:00:04]} 49... Kxg5
{[%clk 0:00:04.5]} 50. Kxc4 {[%clk 0:00:04.5]} 50... Kh5 {[%clk 0:00:03.8]} 51.
b4 {[%clk 0:00:04.9]} 51... g5 {[%clk 0:00:04.3]} 52. b5 {[%clk 0:00:05.4]}
52... g4 {[%clk 0:00:05.2]} 53. b6 {[%clk 0:00:06]} 53... g3 {[%clk 0:00:05.6]}
54. b7 {[%clk 0:00:06.9]} 54... g2 {[%clk 0:00:05.6]} 55. b8=Q {[%clk
0:00:07.8]} 1-0

[Event "Late-Titled-Tuesday-Blitz-February-13-2024"]
[Site "Chess.com"]
[Date "2024.02.13"]
[Round "9"]
[White "Jamal-Jamal-Jamal"]
[Black "ImportedItalianMaple"]
[Result "1-0"]
[WhiteElo "2277"]
[BlackElo "2491"]
[TimeControl "180+1"]
[EndTime "15:45:29 PST"]
[Termination "Jamal-Jamal-Jamal won on time"]

1. d4 {[%clk 0:03:00.9]} 1... g6 {[%clk 0:02:58.9]} 2. Nf3 {[%clk 0:03:01]} 2...
Bg7 {[%clk 0:02:58.8]} 3. g3 {[%clk 0:03:00.9]} 3... d6 {[%clk 0:02:55.8]} 4.
Bg2 {[%clk 0:03:01.8]} 4... Nd7 {[%clk 0:02:55.7]} 5. O-O {[%clk 0:03:02.7]}
5... e5 {[%clk 0:02:54.2]} 6. c4 {[%clk 0:02:58.1]} 6... Ne7 {[%clk 0:02:48.2]}
7. Nc3 {[%clk 0:02:56.7]} 7... O-O {[%clk 0:02:47]} 8. e4 {[%clk 0:02:54.9]}
8... exd4 {[%clk 0:02:46.1]} 9. Nxd4 {[%clk 0:02:55.8]} 9... Nc6 {[%clk
0:02:46.2]} 10. Nxc6 {[%clk 0:02:54.2]} 10... bxc6 {[%clk 0:02:47.1]} 11. Be3
{[%clk 0:02:53.5]} 11... Ne5 {[%clk 0:02:26.8]} 12. Qe2 {[%clk 0:02:53.5]} 12...
Ba6 {[%clk 0:02:26.4]} 13. b3 {[%clk 0:02:45.1]} 13... Nxc4 {[%clk 0:02:25.9]}
14. bxc4 {[%clk 0:02:46]} 14... Bxc3 {[%clk 0:02:25.2]} 15. Rac1 {[%clk
0:02:44.3]} 15... Bg7 {[%clk 0:02:23.6]} 16. Rfd1 {[%clk 0:02:43.8]} 16... Qe7
{[%clk 0:02:08.3]} 17. Qc2 {[%clk 0:02:40.5]} 17... c5 {[%clk 0:01:55.3]} 18.
Rb1 {[%clk 0:02:21.1]} 18... Bc8 {[%clk 0:01:28.9]} 19. e5 {[%clk 0:02:18.5]}
19... Bf5 {[%clk 0:01:27.9]} 20. exd6 {[%clk 0:02:16.3]} 20... cxd6 {[%clk
0:01:26.5]} 21. Qd2 {[%clk 0:02:10.9]} 21... Bxb1 {[%clk 0:01:21.1]} 22. Bxa8
{[%clk 0:02:11.3]} 22... Rxa8 {[%clk 0:01:19.5]} 23. Rxb1 {[%clk 0:02:10.4]}
23... Qe4 {[%clk 0:01:13.6]} 24. Rb3 {[%clk 0:01:57.3]} 24... Bf8 {[%clk
0:01:00.7]} 25. Qe2 {[%clk 0:01:24]} 25... Re8 {[%clk 0:00:55.9]} 26. f3 {[%clk
0:01:20.2]} 26... Qe5 {[%clk 0:00:51.5]} 27. Qd2 {[%clk 0:01:18.2]} 27... Qe6
{[%clk 0:00:44.8]} 28. Qc2 {[%clk 0:01:10.4]} 28... a5 {[%clk 0:00:42.4]} 29.
Kf2 {[%clk 0:01:10]} 29... a4 {[%clk 0:00:20]} 30. Rd3 {[%clk 0:01:09.9]} 30...
Bg7 {[%clk 0:00:16.8]} 31. Qxa4 {[%clk 0:01:06.4]} 31... Rb8 {[%clk 0:00:17.1]}
32. Rd2 {[%clk 0:00:56.9]} 32... h5 {[%clk 0:00:16.8]} 33. Qc2 {[%clk
0:00:48.6]} 33... h4 {[%clk 0:00:15.5]} 34. Qd3 {[%clk 0:00:47.6]} 34... hxg3+
{[%clk 0:00:14.5]} 35. hxg3 {[%clk 0:00:48.5]} 35... Qh3 {[%clk 0:00:14.4]} 36.
Qf1 {[%clk 0:00:43.7]} 36... Qf5 {[%clk 0:00:12.2]} 37. Rxd6 {[%clk 0:00:36.5]}
37... Rb2+ {[%clk 0:00:10.9]} 38. Rd2 {[%clk 0:00:35.7]} 38... Rxd2+ {[%clk
0:00:10.7]} 39. Bxd2 {[%clk 0:00:36.6]} 39... Bd4+ {[%clk 0:00:10]} 40. Be3
{[%clk 0:00:36.5]} 40... Qc2+ {[%clk 0:00:08.8]} 41. Qe2 {[%clk 0:00:34.9]}
41... Qc3 {[%clk 0:00:09.4]} 42. Bxd4 {[%clk 0:00:33.7]} 42... Qxd4+ {[%clk
0:00:10.3]} 43. Kg2 {[%clk 0:00:33.8]} 43... Kg7 {[%clk 0:00:10.2]} 44. g4
{[%clk 0:00:32.5]} 44... g5 {[%clk 0:00:09.4]} 45. a4 {[%clk 0:00:29.9]} 45...
Qa1 {[%clk 0:00:08.7]} 46. Qc2 {[%clk 0:00:29.6]} 46... Qd4 {[%clk 0:00:08]} 47.
a5 {[%clk 0:00:25.6]} 47... Qa1 {[%clk 0:00:08.2]} 48. Qd2 {[%clk 0:00:26]}
48... f6 {[%clk 0:00:07.3]} 49. Qd7+ {[%clk 0:00:24.8]} 49... Kg6 {[%clk
0:00:07.7]} 50. Qd3+ {[%clk 0:00:25.3]} 50... Kg7 {[%clk 0:00:07.4]} 51. Qd2
{[%clk 0:00:25.9]} 51... Qa4 {[%clk 0:00:06.1]} 52. Qd7+ {[%clk 0:00:23.8]}
52... Kg6 {[%clk 0:00:06.7]} 53. Qf5+ {[%clk 0:00:24.2]} 53... Kg7 {[%clk
0:00:07.1]} 54. Qxc5 {[%clk 0:00:23]} 54... Qc2+ {[%clk 0:00:06.4]} 55. Qf2
{[%clk 0:00:22.8]} 55... Qxc4 {[%clk 0:00:06.1]} 56. Qa7+ {[%clk 0:00:18.2]}
56... Kg6 {[%clk 0:00:04.2]} 57. Qf2 {[%clk 0:00:18.4]} 57... Kg7 {[%clk
0:00:04.3]} 58. Qb2 {[%clk 0:00:17.1]} 58... Qa4 {[%clk 0:00:04]} 59. Qb7+
{[%clk 0:00:16.2]} 59... Kg6 {[%clk 0:00:04.7]} 60. Qe4+ {[%clk 0:00:16.2]}
60... Kg7 {[%clk 0:00:04.3]} 61. Qxa4 {[%clk 0:00:14.5]} 1-0

[Event "Late-Titled-Tuesday-Blitz-February-13-2024"]
[Site "Chess.com"]
[Date "2024.02.13"]
[Round "9"]
[White "noblerone"]
[Black "ansko1999"]
[Result "1-0"]
[WhiteElo "2480"]
[BlackElo "2620"]
[TimeControl "180+1"]
[EndTime "15:45:30 PST"]
[Termination "noblerone won on time"]

1. d4 {[%clk 0:03:00.1]} 1... Nf6 {[%clk 0:02:57.9]} 2. Nf3 {[%clk 0:03:00.5]}
2... b6 {[%clk 0:02:56.2]} 3. Bg5 {[%clk 0:02:59.4]} 3... Ne4 {[%clk 0:02:52]}
4. Bh4 {[%clk 0:02:59.1]} 4... Bb7 {[%clk 0:02:51.8]} 5. Nbd2 {[%clk 0:02:59.4]}
5... Nxd2 {[%clk 0:02:49.8]} 6. Qxd2 {[%clk 0:03:00.3]} 6... g6 {[%clk
0:02:48.6]} 7. e3 {[%clk 0:02:56.2]} 7... Bg7 {[%clk 0:02:48.5]} 8. Bc4 {[%clk
0:02:56.6]} 8... O-O {[%clk 0:02:47.7]} 9. O-O {[%clk 0:02:52.6]} 9... d6 {[%clk
0:02:47.4]} 10. c3 {[%clk 0:02:43.7]} 10... Nd7 {[%clk 0:02:47.6]} 11. Ne1
{[%clk 0:02:41.9]} 11... Qe8 {[%clk 0:02:43.6]} 12. a4 {[%clk 0:02:39.8]} 12...
a6 {[%clk 0:02:41.6]} 13. Qc2 {[%clk 0:02:20.4]} 13... e5 {[%clk 0:02:35]} 14.
Qb3 {[%clk 0:02:18.9]} 14... Kh8 {[%clk 0:02:29.4]} 15. Bd5 {[%clk 0:02:07.9]}
15... c6 {[%clk 0:02:28.4]} 16. Bc4 {[%clk 0:02:03.1]} 16... d5 {[%clk
0:02:25.1]} 17. Be2 {[%clk 0:02:01]} 17... b5 {[%clk 0:02:16.9]} 18. Bg4 {[%clk
0:01:50.2]} 18... f5 {[%clk 0:02:14.6]} 19. Bd1 {[%clk 0:01:46]} 19... h6 {[%clk
0:02:11]} 20. dxe5 {[%clk 0:01:43.3]} 20... Nxe5 {[%clk 0:02:03.6]} 21. Bg3
{[%clk 0:01:43.1]} 21... g5 {[%clk 0:02:00]} 22. Bxe5 {[%clk 0:01:38]} 22...
Bxe5 {[%clk 0:01:59.8]} 23. Nf3 {[%clk 0:01:21.9]} 23... Bf6 {[%clk 0:01:50.9]}
24. Qb4 {[%clk 0:01:18.3]} 24... Qe4 {[%clk 0:01:37.3]} 25. Qxe4 {[%clk
0:01:15.1]} 25... fxe4 {[%clk 0:01:35.7]} 26. Nd4 {[%clk 0:01:15.3]} 26... c5
{[%clk 0:01:27.9]} 27. Nb3 {[%clk 0:01:15.3]} 27... Be7 {[%clk 0:01:17.4]} 28.
Be2 {[%clk 0:01:13.8]} 28... Bc6 {[%clk 0:01:15.8]} 29. axb5 {[%clk 0:01:06.7]}
29... axb5 {[%clk 0:01:16.2]} 30. h3 {[%clk 0:01:06]} 30... Ra4 {[%clk
0:01:06.7]} 31. Rab1 {[%clk 0:00:44.7]} 31... Kg7 {[%clk 0:00:57.4]} 32. Rfc1
{[%clk 0:00:42]} 32... Kf6 {[%clk 0:00:52.5]} 33. Kf1 {[%clk 0:00:40.4]} 33...
Ke5 {[%clk 0:00:52.3]} 34. Ke1 {[%clk 0:00:40.7]} 34... Rfa8 {[%clk 0:00:39.8]}
35. Bd1 {[%clk 0:00:39.4]} 35... Ra2 {[%clk 0:00:37.3]} 36. Be2 {[%clk
0:00:29.4]} 36... Be8 {[%clk 0:00:35.2]} 37. Rd1 {[%clk 0:00:27.1]} 37... h5
{[%clk 0:00:32.6]} 38. Nc1 {[%clk 0:00:27.3]} 38... R2a4 {[%clk 0:00:24.2]} 39.
Nb3 {[%clk 0:00:27]} 39... Ra2 {[%clk 0:00:18.6]} 40. Nc1 {[%clk 0:00:26.6]}
40... R2a7 {[%clk 0:00:18.9]} 41. Nb3 {[%clk 0:00:26.9]} 41... Bc6 {[%clk
0:00:15.7]} 42. Bxh5 {[%clk 0:00:22.7]} 42... Ra2 {[%clk 0:00:14.2]} 43. Nc1
{[%clk 0:00:21.8]} 43... R2a7 {[%clk 0:00:13.2]} 44. Be2 {[%clk 0:00:22.4]}
44... Ra5 {[%clk 0:00:13]} 45. Nb3 {[%clk 0:00:22.8]} 45... Ra2 {[%clk 0:00:13]}
46. Rdc1 {[%clk 0:00:22.2]} 46... R2a7 {[%clk 0:00:12.8]} 47. Ra1 {[%clk
0:00:22.4]} 47... Ra4 {[%clk 0:00:12.1]} 48. Bd1 {[%clk 0:00:20.8]} 48... Rxa1
{[%clk 0:00:10.7]} 49. Rxa1 {[%clk 0:00:20.5]} 49... Rxa1 {[%clk 0:00:09.7]} 50.
Nxa1 {[%clk 0:00:21.4]} 50... d4 {[%clk 0:00:09.4]} 51. cxd4+ {[%clk 0:00:20]}
51... cxd4 {[%clk 0:00:10.3]} 52. exd4+ {[%clk 0:00:20.6]} 52... Kxd4 {[%clk
0:00:10.8]} 53. Ke2 {[%clk 0:00:16.4]} 53... b4 {[%clk 0:00:08.2]} 54. Nc2+
{[%clk 0:00:16.2]} 54... Ke5 {[%clk 0:00:08.1]} 55. Ne3 {[%clk 0:00:16]} 55...
Bb5+ {[%clk 0:00:07.9]} 56. Kd2 {[%clk 0:00:16.5]} 56... Kd4 {[%clk 0:00:06.5]}
57. Be2 {[%clk 0:00:15.7]} 57... Bd7 {[%clk 0:00:04.8]} 58. Bg4 {[%clk 0:00:15]}
58... Bxg4 {[%clk 0:00:03.4]} 59. Nxg4 {[%clk 0:00:15.9]} 59... Bd6 {[%clk
0:00:03.1]} 60. Ne3 {[%clk 0:00:16.1]} 60... Bf4 {[%clk 0:00:03.2]} 61. g3
{[%clk 0:00:14.6]} 1-0

[Event "Late-Titled-Tuesday-Blitz-February-13-2024"]
[Site "Chess.com"]
[Date "2024.02.13"]
[Round "9"]
[White "andrzej"]
[Black "Alblooshi_Hamad"]
[Result "1/2-1/2"]
[WhiteElo "2511"]
[BlackElo "2278"]
[TimeControl "180+1"]
[EndTime "15:45:31 PST"]
[Termination "Game drawn by repetition"]

1. e4 {[%clk 0:03:00.9]} 1... c5 {[%clk 0:02:57]} 2. Nf3 {[%clk 0:03:01.1]} 2...
Nc6 {[%clk 0:02:54.6]} 3. d4 {[%clk 0:03:01.4]} 3... cxd4 {[%clk 0:02:53]} 4.
Nxd4 {[%clk 0:03:02.3]} 4... Nf6 {[%clk 0:02:53.7]} 5. Nc3 {[%clk 0:03:02.1]}
5... e5 {[%clk 0:02:54.1]} 6. Ndb5 {[%clk 0:03:01.7]} 6... d6 {[%clk 0:02:54.4]}
7. Bg5 {[%clk 0:03:01.7]} 7... a6 {[%clk 0:02:54.9]} 8. Na3 {[%clk 0:03:02.3]}
8... b5 {[%clk 0:02:55.3]} 9. Nd5 {[%clk 0:03:02.8]} 9... Be7 {[%clk 0:02:56]}
10. Bxf6 {[%clk 0:03:03.3]} 10... Bxf6 {[%clk 0:02:56.9]} 11. c4 {[%clk
0:03:03.6]} 11... b4 {[%clk 0:02:56.1]} 12. Nc2 {[%clk 0:03:04.2]} 12... Rb8
{[%clk 0:02:56.5]} 13. Qf3 {[%clk 0:03:01.9]} 13... Bg5 {[%clk 0:02:55.1]} 14.
h4 {[%clk 0:03:01.3]} 14... Bh6 {[%clk 0:02:55.1]} 15. g4 {[%clk 0:02:58.5]}
15... Bf4 {[%clk 0:02:55.2]} 16. b3 {[%clk 0:02:54.8]} 16... Be6 {[%clk
0:02:40]} 17. Nxf4 {[%clk 0:02:53.4]} 17... Qf6 {[%clk 0:02:39.9]} 18. g5 {[%clk
0:02:29.2]} 18... Qxf4 {[%clk 0:02:38.9]} 19. Qxf4 {[%clk 0:02:23.7]} 19... exf4
{[%clk 0:02:38.4]} 20. Be2 {[%clk 0:02:24.2]} 20... Ke7 {[%clk 0:02:29.8]} 21.
O-O-O {[%clk 0:02:22.7]} 21... Ne5 {[%clk 0:02:24.7]} 22. Nd4 {[%clk 0:02:20.7]}
22... Rbc8 {[%clk 0:02:23.4]} 23. Kb2 {[%clk 0:02:19.7]} 23... h6 {[%clk
0:02:12.3]} 24. Rdg1 {[%clk 0:02:12.4]} 24... hxg5 {[%clk 0:02:10.1]} 25. hxg5
{[%clk 0:02:11.4]} 25... g6 {[%clk 0:02:04.5]} 26. a3 {[%clk 0:01:23.3]} 26...
a5 {[%clk 0:01:44.2]} 27. axb4 {[%clk 0:01:23.3]} 27... axb4 {[%clk 0:01:44.5]}
28. Ra1 {[%clk 0:01:23.9]} 28... Rxh1 {[%clk 0:01:44]} 29. Rxh1 {[%clk
0:01:24.8]} 29... Ra8 {[%clk 0:01:32.1]} 30. f3 {[%clk 0:01:23.4]} 30... Kd7
{[%clk 0:01:21.6]} 31. Rh4 {[%clk 0:01:20.4]} 31... Nc6 {[%clk 0:01:00.9]} 32.
Nc2 {[%clk 0:01:12.9]} 32... Ke7 {[%clk 0:00:49]} 33. Rh1 {[%clk 0:01:07.2]}
33... Kd7 {[%clk 0:00:45.2]} 34. Rh7 {[%clk 0:01:06]} 34... Ke7 {[%clk
0:00:41.3]} 35. Rh4 {[%clk 0:01:04.5]} 35... Kd7 {[%clk 0:00:35.9]} 36. Rh2
{[%clk 0:00:45.9]} 36... Ke7 {[%clk 0:00:35.2]} 37. Bf1 {[%clk 0:00:40.8]} 37...
Rb8 {[%clk 0:00:29.4]} 38. Rh1 {[%clk 0:00:37.9]} 38... Ra8 {[%clk 0:00:28.5]}
39. Bh3 {[%clk 0:00:35.6]} 39... Rh8 {[%clk 0:00:28.7]} 40. Bg2 {[%clk
0:00:35.8]} 40... Ra8 {[%clk 0:00:29]} 41. Rh2 {[%clk 0:00:30]} 41... Rb8 {[%clk
0:00:27.1]} 42. Rh4 {[%clk 0:00:30.4]} 42... Ra8 {[%clk 0:00:25]} 43. Bh3 {[%clk
0:00:29]} 43... Rb8 {[%clk 0:00:19.1]} 44. Bxe6 {[%clk 0:00:27.4]} 44... Kxe6
{[%clk 0:00:19.1]} 45. Rh2 {[%clk 0:00:21.9]} 45... Ke7 {[%clk 0:00:17]} 46. Rh4
{[%clk 0:00:19.3]} 46... Ne5 {[%clk 0:00:16.9]} 47. Nd4 {[%clk 0:00:18.7]} 47...
Ra8 {[%clk 0:00:11]} 48. Rh1 {[%clk 0:00:18.2]} 48... Ra7 {[%clk 0:00:10.5]} 49.
Ra1 {[%clk 0:00:15.3]} 49... Nd3+ {[%clk 0:00:09.6]} 50. Kb1 {[%clk 0:00:14.8]}
50... Rxa1+ {[%clk 0:00:09.1]} 51. Kxa1 {[%clk 0:00:15.7]} 51... Ne5 {[%clk
0:00:07.7]} 52. Kb2 {[%clk 0:00:15.7]} 52... Kd7 {[%clk 0:00:08.3]} 53. Kc2
{[%clk 0:00:15.9]} 53... Kc7 {[%clk 0:00:08.6]} 54. Kd2 {[%clk 0:00:16.3]} 54...
Kb6 {[%clk 0:00:09.3]} 55. Ke2 {[%clk 0:00:16.1]} 55... Kc5 {[%clk 0:00:08.3]}
56. Nc2 {[%clk 0:00:14.9]} 56... Nc6 {[%clk 0:00:08.9]} 57. Kd3 {[%clk
0:00:13.9]} 57... Ne5+ {[%clk 0:00:09.2]} 58. Ke2 {[%clk 0:00:14.3]} 58... Nc6
{[%clk 0:00:09.3]} 59. Kd3 {[%clk 0:00:12.9]} 59... Ne5+ {[%clk 0:00:08.2]} 60.
Ke2 {[%clk 0:00:13.4]} 1/2-1/2

[Event "Late-Titled-Tuesday-Blitz-February-13-2024"]
[Site "Chess.com"]
[Date "2024.02.13"]
[Round "9"]
[White "ChessSkool"]
[Black "Jarrahi2452"]
[Result "1/2-1/2"]
[WhiteElo "2728"]
[BlackElo "2823"]
[TimeControl "180+1"]
[EndTime "15:45:39 PST"]
[Termination "Game drawn - insufficient material"]

1. d4 {[%clk 0:02:26.7]} 1... d5 {[%clk 0:02:59.6]} 2. Nf3 {[%clk 0:02:25.3]}
2... Nf6 {[%clk 0:02:58.8]} 3. c3 {[%clk 0:02:22.1]} 3... c5 {[%clk 0:02:55.2]}
4. dxc5 {[%clk 0:02:23]} 4... e6 {[%clk 0:02:51.2]} 5. Be3 {[%clk 0:02:20]} 5...
a5 {[%clk 0:02:44.6]} 6. c4 {[%clk 0:02:17.9]} 6... Na6 {[%clk 0:02:42.4]} 7.
cxd5 {[%clk 0:02:15.7]} 7... Qxd5 {[%clk 0:02:42.2]} 8. Nc3 {[%clk 0:02:13.1]}
8... Qxd1+ {[%clk 0:02:39.5]} 9. Rxd1 {[%clk 0:02:14]} 9... Bxc5 {[%clk
0:02:39.4]} 10. Bxc5 {[%clk 0:02:00.8]} 10... Nxc5 {[%clk 0:02:40.3]} 11. e3
{[%clk 0:02:01.7]} 11... Bd7 {[%clk 0:02:37.7]} 12. Ne5 {[%clk 0:02:01.1]} 12...
Rd8 {[%clk 0:02:25]} 13. Nxd7 {[%clk 0:01:30.8]} 13... Ncxd7 {[%clk 0:02:17.8]}
14. Be2 {[%clk 0:01:27.7]} 14... O-O {[%clk 0:02:15.2]} 15. Bf3 {[%clk
0:01:27.9]} 15... Nc5 {[%clk 0:02:12.7]} 16. Ke2 {[%clk 0:01:27.5]} 16... e5
{[%clk 0:02:06.7]} 17. g3 {[%clk 0:01:04.1]} 17... e4 {[%clk 0:02:05.5]} 18. Bg2
{[%clk 0:01:04.5]} 18... Rfe8 {[%clk 0:02:02.8]} 19. Rxd8 {[%clk 0:01:00.3]}
19... Rxd8 {[%clk 0:02:02.4]} 20. Rc1 {[%clk 0:00:57.7]} 20... b6 {[%clk
0:01:55.2]} 21. Rc2 {[%clk 0:00:57.2]} 21... Kf8 {[%clk 0:01:54.2]} 22. h3
{[%clk 0:00:55.9]} 22... Ke7 {[%clk 0:01:53.8]} 23. a3 {[%clk 0:00:48.5]} 23...
a4 {[%clk 0:01:51.1]} 24. Rd2 {[%clk 0:00:44.1]} 24... Rxd2+ {[%clk 0:01:43.1]}
25. Kxd2 {[%clk 0:00:45]} 25... Kd6 {[%clk 0:01:43.6]} 26. Bf1 {[%clk
0:00:44.1]} 26... Nd5 {[%clk 0:01:36.1]} 27. Bc4 {[%clk 0:00:35.5]} 27... Nxc3
{[%clk 0:01:35.7]} 28. Kxc3 {[%clk 0:00:36.4]} 28... f5 {[%clk 0:01:29.1]} 29.
Kd4 {[%clk 0:00:34.3]} 29... g5 {[%clk 0:01:22.5]} 30. g4 {[%clk 0:00:24.8]}
30... Ke7 {[%clk 0:01:15.8]} 31. Ke5 {[%clk 0:00:21.9]} 31... fxg4 {[%clk
0:01:15]} 32. hxg4 {[%clk 0:00:20.9]} 32... Nd3+ {[%clk 0:01:12.5]} 33. Kxe4
{[%clk 0:00:21]} 33... Nxf2+ {[%clk 0:01:12.3]} 34. Kf5 {[%clk 0:00:10.1]} 34...
Nd1 {[%clk 0:01:11.8]} 35. e4 {[%clk 0:00:07.1]} 35... Ne3+ {[%clk 0:01:09.7]}
36. Kxg5 {[%clk 0:00:06.5]} 36... Nxc4 {[%clk 0:01:10.2]} 37. Kh6 {[%clk
0:00:07.4]} 37... Nxb2 {[%clk 0:01:02.9]} 38. Kxh7 {[%clk 0:00:03.3]} 38... Kf6
{[%clk 0:00:54.9]} 39. Kh6 {[%clk 0:00:03.4]} 39... Nd3 {[%clk 0:00:49.1]} 40.
g5+ {[%clk 0:00:03.7]} 40... Kf7 {[%clk 0:00:49.3]} 41. g6+ {[%clk 0:00:02]}
41... Kg8 {[%clk 0:00:48.5]} 42. Kg5 {[%clk 0:00:02.7]} 42... b5 {[%clk
0:00:47.4]} 43. Kf6 {[%clk 0:00:02.7]} 43... b4 {[%clk 0:00:46]} 44. axb4 {[%clk
0:00:03.3]} 44... a3 {[%clk 0:00:46.1]} 45. e5 {[%clk 0:00:02.1]} 45... a2
{[%clk 0:00:45.1]} 46. e6 {[%clk 0:00:02.4]} 46... a1=Q+ {[%clk 0:00:45.1]} 47.
Ke7 {[%clk 0:00:03.2]} 47... Qg7+ {[%clk 0:00:42.9]} 48. Kd6 {[%clk 0:00:03.7]}
48... Kf8 {[%clk 0:00:42.9]} 49. b5 {[%clk 0:00:03.8]} 49... Qxg6 {[%clk
0:00:42.2]} 50. b6 {[%clk 0:00:04.1]} 50... Nf4 {[%clk 0:00:41.2]} 51. b7 {[%clk
0:00:02.4]} 51... Qxe6+ {[%clk 0:00:41.5]} 52. Kc7 {[%clk 0:00:02.9]} 52... Qe7+
{[%clk 0:00:41.6]} 53. Kc8 {[%clk 0:00:02.5]} 53... Ne6 {[%clk 0:00:38.5]} 54.
b8=Q {[%clk 0:00:02.1]} 54... Qc5+ {[%clk 0:00:38.8]} 55. Kd7+ {[%clk
0:00:01.8]} 55... Kf7 {[%clk 0:00:34.4]} 56. Qb7 {[%clk 0:00:02.4]} 56... Qe7+
{[%clk 0:00:28.2]} 57. Kc8 {[%clk 0:00:01.5]} 57... Kf6 {[%clk 0:00:11.9]} 58.
Qxe7+ {[%clk 0:00:01.6]} 58... Kxe7 {[%clk 0:00:12.8]} 1/2-1/2